[Event "Saint Louis Norm Congress-IM 2022"]
[Site "Saint Louis"]
[Date "2022.05.21"]
[Round "4.2"]
[White "Ezra Paul Chambers"]
[Black "Proleiko, Julian"]
[Result "1-0"]
[ECO "B12"]
[WhiteElo "2232"]
[BlackElo "2204"]
[Annotator "TA"]
[PlyCount "119"]
[EventDate "2022.05.20"]
[EventType "tourn"]
[EventCountry "USA"]
[SourceTitle "playchess.com"]
[Source "ChessBase"]
[SourceQuality "1"]
[TimeControl "5400+30"]

{[%evp 9,119,12,14,18,8,3,43,0,16,2,13,7,3,0,0,0,0,0,0,-37,0,-8,71,77,110,107,135,120,141,124,110,112,95,55,70,24,194,193,175,188,158,205,214,198,191,225,230,212,217,239,235,240,227,275,243,230,189,171,181,181,314,314,307,307,290,285,315,313,296,272,244,218,676,711,710,711,711,711,710,601,692,692,692,664,581,573,1321,1240,1027,1193,1091,1002,29938,12827,29970,29971,29965,29972,6598,5189,29973,29974,29972,29973,29973,29974,29976,29977,29977,29977,29962,6498]} 1. e4 {[%emt 0:00:03]} c6 {[%emt 0:00:22]} 2. d4 {[%emt 0:00:18]} d5 {[%emt 0:00:04]} 3. e5 {[%emt 0:00:10]} Bf5 {[%emt 0:00:07]} 4. Nd2 {[%emt 0:00:15]} e6 {[%emt 0:00:07]} 5. Nb3 {[%emt 0:00:13]} c5 {[%emt 0:00:08]} 6. dxc5 {[%emt 0:02:33] B12: Caro-Kann: Advance Variation.} Bxc5 {[%emt 0:01:17]} 7. Bb5+ {[%emt 0:00:50]} Nc6 {[%emt 0:00:09][%cal Og8e7]} 8. Bxc6+ {[%emt 0:00:21] White is slightly better.} (8. a4 $5 {[%cal Rb3c5]} Bf8 9. Nf3 $11) 8... bxc6 {[%emt 0:00:15]} 9. Nxc5 {[%emt 0:00:15] aiming for Nb7.} Qa5+ {[%emt 0:00:05]} 10. c3 {[%emt 0:00:18] And now Nb7 would win.} Qxc5 {[%emt 0:00:04]} 11. Be3 {[%emt 0:00:23]} Qb5 {[%emt 0:00:37] [#]} 12. b4 $146 {[%emt 0:04:00]} ({Predecessor:} 12. Ne2 Qxb2 13. O-O Ne7 14. Bc5 Qb5 15. Bd6 c5 16. c4 dxc4 17. Nc3 Qd7 18. Re1 {1-0 (69) Alekseenko,K (2698)-Csonka,B (2496) Chess.com INT 2022}) 12... a5 {[%emt 0:10:15]} 13. Bc5 {[%emt 0:03:30]} Qc4 {[%emt 0:17:44]} 14. Qd4 {[%emt 0:02:43]} Qxd4 {[%emt 0:04:39]} (14... axb4 {seems wilder.} 15. Bxb4 Ne7 16. Nf3 Kd7) 15. cxd4 {[%emt 0:01:12]} a4 {[%emt 0:01:31]} (15... axb4 $11 16. Bxb4 Ne7) 16. Kd2 $16 {[%emt 0:01:14]} Ne7 {[%emt 0:04:43]} 17. Ne2 {[%emt 0:01:24]} Nc8 {[%emt 0:01:56]} 18. Rac1 {[%emt 0:01:33]} a3 {[%emt 0:02:01]} 19. Rc3 {[%emt 0:01:48]} Kd7 {[%emt 0:00:18]} 20. Rhc1 {[%emt 0:00:53][%cal Ob4b5]} Na7 {[%emt 0:01:21]} 21. Bb6 {[%emt 0:12:50]} ({But not} 21. Rxa3 Nb5 22. Rxa8 Rxa8 $11) 21... Nb5 {[%emt 0:03:53]} 22. Rxc6 {[%emt 0:14:54]} (22. Rc5 $14) 22... Ra6 $2 {[%emt 0:00:06] [#] This move loses the game for Black.} (22... Rhb8 $1 $11 {and Black has nothing to worry.}) 23. Rc7+ $1 $18 {[%emt 0:00:58][%mdl 512]} Nxc7 {[%emt 0:00:05]} 24. Rxc7+ {[%emt 0:00:03]} Kd8 {[%emt 0:00:03]} 25. Rc6+ {[%emt 0:00:58]} Kd7 {[%emt 0:00:44]} 26. b5 {[%emt 0:12:04] Intending Rc7+ and mate.} Rxb6 {[%emt 0:13:04]} (26... Raa8 $2 27. Rc7+ Ke8 28. Bc5 $18) 27. Rxb6 {[%emt 0:00:07][%mdl 4096] Endgame KRB-KRN} Rc8 {[%emt 0:00:03]} 28. Rd6+ {[%emt 0:02:30]} Ke7 {[%emt 0:02:32]} 29. Rc6 {[%emt 0:01:22] Prevents Rc2+.} Rxc6 {[%emt 0:01:20]} 30. bxc6 {[%emt 0:00:01] KB-KN} Kd8 {[%emt 0:00:07] [#]} 31. Kc3 $1 {[%emt 0:00:30] Hoping for Kb4.} Kc7 {[%emt 0:00:15]} 32. Kb4 {[%emt 0:00:29]} Kxc6 {[%emt 0:00:13]} 33. Kxa3 {[%emt 0:01:44] Strongly threatening Kb4.} Kb5 {[%emt 0:00:04]} 34. Kb3 {[%emt 0:00:24]} Bd3 {[%emt 0:00:38]} (34... Bg4 {was worth a try.}) 35. a4+ {[%emt 0:00:35]} Ka5 {[%emt 0:00:04] [#]} 36. Nc1 $1 {[%emt 0:00:18]} Bf1 {[%emt 0:02:43]} 37. g3 {[%emt 0:00:27]} Bc4+ {[%emt 0:02:09]} 38. Ka3 {[%emt 0:00:07]} Ka6 {[%emt 0:01:23]} 39. Nb3 {[%emt 0:00:16]} Kb6 {[%emt 0:00:07]} 40. Kb4 {[%emt 0:00:08]} Ka6 $2 {[%emt 0:00:09]} (40... Be2 41. Nc5 h6) 41. Nc5+ {[%emt 0:01:33]} Kb6 {[%emt 0:00:05]} 42. a5+ {[%emt 0:02:41]} Kc6 {[%emt 0:00:06] [#]} 43. Ne4 $1 {[%emt 0:02:43][%mdl 512]} Bd3 {[%emt 0:00:17]} 44. Nd6 {[%emt 0:02:05]} f6 {[%emt 0:00:45] [#]} 45. exf6 {[%emt 0:04:08]} gxf6 {[%emt 0:00:04]} 46. Ne8 {[%emt 0:00:03]} f5 {[%emt 0:02:09]} 47. Nf6 {[%emt 0:00:40]} f4 {[%emt 0:00:16]} 48. gxf4 {[%emt 0:00:54]} Bf5 {[%emt 0:00:06]} 49. f3 {[%emt 0:00:18]} Bd3 {[%emt 0:00:16]} 50. Ng4 {[%emt 0:00:06] White wants to mate with Ne5+.} Bf5 {[%emt 0:00:08]} 51. Ne5+ {[%emt 0:00:07]} Kb7 {[%emt 0:00:01]} 52. Kb5 {[%emt 0:00:10]} Bh3 {[%emt 0:00:22]} 53. a6+ {[%emt 0:00:04][%cal Ba5a6,Ba6a7][%mdl 32]} Kc7 {[%emt 0:00:05]} 54. Kc5 {[%emt 0:00:38] Nc6 is the strong threat.} Bf1 {[%emt 0:00:05]} 55. a7 {[%emt 0:00:03] White mates.} Kb7 {[%emt 0:00:04]} 56. Kd6 {[%emt 0:00:25]} Bh3 {[%emt 0:00:13]} 57. Nc6 {[%emt 0:00:36]} Bf5 {[%emt 0:00:31]} 58. h4 {[%emt 0:01:22]} Bh3 {[%emt 0:00:06]} 59. Nd8+ {[%emt 0:00:25]} Kxa7 {[%emt 0:00:05]} 60. Nxe6 {[%emt 0:00:03] Weighted Error Value: White=0.05 (flawless) /Black=0.57} 1-0

[Event "Saint Louis Norm Congress-IM 2022"]
[Site "Saint Louis"]
[Date "2022.05.21"]
[Round "4.3"]
[White "Antova, Gabriela"]
[Black "Grabinsky, Aaron"]
[Result "0-1"]
[ECO "E11"]
[WhiteElo "2293"]
[BlackElo "2401"]
[Annotator "TA"]
[PlyCount "106"]
[EventDate "2022.05.20"]
[EventType "tourn"]
[EventCountry "USA"]
[SourceTitle "playchess.com"]
[Source "ChessBase"]
[SourceQuality "1"]
[TimeControl "5400+30"]

{[%evp 10,106,14,33,39,20,20,25,30,25,22,28,64,13,52,47,57,38,47,41,32,9,19,0,28,-45,-47,-65,-49,-121,-131,-131,-141,-133,-117,-108,-125,-140,-43,-39,-21,-55,-36,-45,0,0,0,0,0,0,0,0,22,0,70,58,66,70,63,82,62,0,72,0,53,47,88,110,127,116,110,59,201,167,236,247,718,268,253,216,183,-135,-132,-512,-512,-487,-362,-445,-455,-613,-618,-1035,-1045,-29983,-29984,-29997,-29998,-29998,-29999]} 1. d4 {[%emt 0:00:05]} e6 {[%emt 0:00:22]} 2. c4 {[%emt 0:01:17]} Nf6 {[%emt 0:00:08]} 3. Nf3 {[%emt 0:00:11]} Bb4+ {[%emt 0:00:07]} 4. Nbd2 {[%emt 0:00:15]} O-O {[%emt 0:00:16]} 5. a3 {[%emt 0:00:24]} Be7 {[%emt 0:00:07]} 6. e4 {[%emt 0:00:38]} d6 {[%emt 0:00:19][%cal Oe6e5] E11: Bogo-Indian.} 7. Be2 {[%emt 0:04:40]} Nfd7 {[%emt 0:00:11]} 8. b4 {[%emt 0:08:07]} a5 {[%emt 0:02:40] White has an edge.} 9. Bb2 {[%emt 0:03:46]} e5 {[%emt 0:04:46]} 10. d5 {[%emt 0:05:44]} c5 {[%emt 0:02:03]} 11. bxa5 {[%emt 0:05:57]} ({White should play} 11. b5 $14) 11... Rxa5 {[%emt 0:01:38] [#]} 12. Bc3 $146 {[%emt 0:05:05]} ({Predecessor:} 12. O-O Ra6 13. Ne1 Nf6 14. g3 Bh3 15. Ng2 Nbd7 16. f4 g6 17. Rf2 h5 18. Ne3 {½-½ (46) Gajewski,G (2596)-Tratar,M (2419) Tornelo INT 2021}) 12... Ra6 {[%emt 0:01:00]} 13. Qc2 {[%emt 0:01:27]} g6 {[%emt 0:00:50]} 14. Bd3 {[%emt 0:10:54]} Nf6 {[%emt 0:00:53]} 15. a4 {[%emt 0:04:02]} Nh5 {[%emt 0:00:22]} 16. g3 {[%emt 0:02:42]} f5 {[%emt 0:02:14][%cal Bf7f5,Bf5f4][%mdl 32]} 17. Nb3 {[%emt 0:06:30]} (17. exf5 $11 Bxf5 18. O-O) 17... f4 $15 {[%emt 0:06:17] And now ...fxg3 would win.} 18. Nfd2 {[%emt 0:03:43]} Qe8 {[%emt 0:02:18]} 19. a5 {[%emt 0:01:18]} (19. Be2 $15) 19... Qf7 $1 $17 {[%emt 0:04:30]} 20. O-O-O {[%emt 0:05:04]} b6 {[%emt 0:05:22]} 21. Kb2 {[%emt 0:01:12]} bxa5 {[%emt 0:00:54]} 22. Bxa5 {[%emt 0:02:19]} Bg5 {[%emt 0:12:21]} 23. g4 {[%emt 0:03:00]} Ng7 {[%emt 0:01:38]} (23... Bxg4 $17 24. Rdg1 Bh4) 24. f3 $15 {[%emt 0:00:33]} Bh4 {[%emt 0:01:01]} 25. Rhf1 {[%emt 0:01:06]} Qb7 {[%emt 0:01:26]} 26. Ra1 {[%emt 0:00:49]} Ne8 {[%emt 0:03:31]} 27. Nb1 {[%emt 0:05:19][%cal Bd2b1,Bb1c3,Bc3b5][%mdl 32]} Bd7 {[%emt 0:02:42]} 28. Nc3 {[%emt 0:02:51]} Ra8 {[%emt 0:02:20]} 29. Nb5 {[%emt 0:03:18]} Na6 {[%emt 0:05:37]} 30. Rfb1 {[%emt 0:04:28]} Kf7 {[%emt 0:04:53]} 31. Qe2 {[%emt 0:03:58]} h5 {[%emt 0:03:33]} ({Black should try} 31... Be7 $11) 32. gxh5 $14 {[%emt 0:01:03]} gxh5 {[%emt 0:08:43]} 33. Rg1 $1 {[%emt 0:00:21]} Bh3 $1 {[%emt 0:03:43] Against Qg2} 34. Bc3 {[%emt 0:01:50]} Qb6 {[%emt 0:02:24]} 35. Ba5 {[%emt 0:00:20]} (35. Qd2 $14) 35... Qb8 {[%emt 0:00:57]} (35... Qb7 $11 {keeps the balance.}) 36. Be1 {[%emt 0:03:07]} (36. Qd2 $16) 36... Bf6 {[%emt 0:03:18]} (36... Bxe1 $11 37. Qxe1 Nb4 38. Rxa8 Nxd3+ 39. Kc3 Qxa8) 37. Na5 {[%emt 0:00:18]} Nec7 {[%emt 0:02:13]} 38. Nc6 {[%emt 0:00:16]} Qb7 {[%emt 0:00:07]} 39. Ba5 $1 $36 {[%emt 0:00:37][%mdl 2048] Keeping Black busy.} Rg8 {[%emt 0:04:17]} 40. Kc3 {[%emt 0:01:12]} (40. Qf2 $16) 40... Nxb5+ {[%emt 0:00:36]} (40... Ne8 $1 $14) 41. cxb5 $18 {[%emt 0:00:05]} Nc7 {[%emt 0:00:52]} (41... Nb8 {was called for.} 42. Qa2 (42. Rxg8 Kxg8 43. Qb2 Nd7 $16) 42... Nd7) 42. Bc4 {[%emt 0:00:41]} Bh4 $2 {[%emt 0:01:52] [#]} (42... Ne8 43. Qf2 Rg6) 43. Rxg8 $2 {[%emt 0:00:53]} (43. Nxe5+ $1 {[%mdl 512]} dxe5 44. Bxc7 Rxg1 45. Rxg1) 43... Kxg8 {[%emt 0:00:22]} 44. Ra2 {[%emt 0:00:26] aiming for Bxc7.} Ne8 {[%emt 0:01:02]} 45. Bd8 $2 {[%emt 0:00:33]} Bxd8 $17 {[%emt 0:00:47]} 46. Nxd8 $2 {[%emt 0:00:29][%mdl 8192]} (46. Ra6 $17 {was the crucial defense.}) 46... Rxd8 $19 {[%emt 0:00:07]} 47. Qe1 {[%emt 0:00:03]} Qe7 {[%emt 0:02:00] Inhibits Qh4.} 48. b6 {[%emt 0:00:04] [#]} Rb8 $1 {[%emt 0:00:30]} 49. Ra7 {[%emt 0:00:29]} Qg5 {[%emt 0:00:17]} 50. Bb5 {[%emt 0:00:51] [#]} Rxb6 $1 {[%emt 0:00:52]} 51. Bxe8 {[%emt 0:00:28]} (51. Be2 Qg2) 51... Qg2 $1 {[%emt 0:00:07][%csl LRf3,LRh2] Black mates.} 52. Ba4 {[%emt 0:01:10]} Qb2+ {[%emt 0:00:25]} 53. Kd3 {[%emt 0:00:11]} c4+ {[%emt 0:00:08] Weighted Error Value: White=0.72/Black=0.24 (precise)} 0-1

[Event "Saint Louis Norm Congress-IM 2022"]
[Site "Saint Louis"]
[Date "2022.05.21"]
[Round "4.4"]
[White "Tokhirjonova, Gulrukhbegim"]
[Black "Marek, Matyas"]
[Result "0-1"]
[ECO "D27"]
[WhiteElo "2337"]
[BlackElo "2363"]
[Annotator "TA"]
[PlyCount "98"]
[EventDate "2022.05.20"]
[EventType "tourn"]
[EventCountry "USA"]
[SourceTitle "playchess.com"]
[Source "ChessBase"]
[SourceQuality "1"]
[TimeControl "5400+30"]

{[%evp 11,98,15,18,21,14,16,18,13,15,22,15,0,15,16,7,13,6,16,31,7,17,15,22,-23,-9,-22,-27,-18,-7,-23,-29,-20,0,-33,-42,-34,-30,-39,-35,-43,-22,-18,-30,-27,-17,-47,-24,-11,-22,-12,-31,-27,0,-7,0,-7,-8,-4,0,-18,-8,-38,-32,-230,-8,-10,0,-25,-12,-106,-109,-98,-93,-89,-98,-99,-98,-199,-56,-138,-134,-556,-514,-29965,-29965,-5497,-5481,-29975,-4945]} 1. d4 {[%emt 0:13:11]} d5 {[%emt 0:00:05]} 2. c4 {[%emt 0:00:16]} dxc4 {[%emt 0:00:05]} 3. e3 {[%emt 0:00:25]} Nf6 {[%emt 0:00:04]} 4. Bxc4 {[%emt 0:00:35]} e6 {[%emt 0:00:04]} 5. Nf3 {[%emt 0:00:33]} a6 {[%emt 0:00:04]} 6. O-O {[%emt 0:02:21]} c5 {[%emt 0:00:02]} 7. Be2 {[%emt 0:01:56] D27: Queen's Gambit Accepted: Classical main line: 7 e4!? and 7 a4.} Nc6 {[%emt 0:02:41]} (7... cxd4 {keeps more tension.} 8. Nxd4 e5 9. Nf3 Qc7) 8. Nc3 {[%emt 0:07:16]} cxd4 {[%emt 0:00:45]} 9. exd4 {[%emt 0:00:12] The position is equal.} Be7 {[%emt 0:00:08]} 10. Be3 {[%emt 0:01:12]} O-O {[%emt 0:00:14]} 11. Rc1 {[%emt 0:00:20]} Nb4 {[%emt 0:03:53]} 12. Ne5 {[%emt 0:04:30]} Nbd5 {[%emt 0:06:45] [#]} 13. Bf3 $146 {[%emt 0:05:19]} (13. Bd3 {seems wilder.} Bd7 14. Nxd5 Nxd5 15. Qh5) ({Predecessor:} 13. Qb3 Nxe3 14. fxe3 Nd5 15. Ne4 f6 16. Nf3 Bd7 17. Nc5 Bxc5 18. Rxc5 Bc6 19. Rd1 Qb6 20. Bc4 Qxb3 21. Bxb3 Rfd8 22. e4 Nc7 23. d5 {1-0 (23) Guimaraes Jr,A (1800)-Da Silva,R (2212) Belem 2010}) 13... Nxe3 {[%emt 0:08:35]} 14. fxe3 {[%emt 0:00:13]} Nd7 {[%emt 0:00:02]} 15. Nd3 {[%emt 0:05:05]} Rb8 {[%emt 0:02:47]} 16. b4 {[%emt 0:13:32]} Bg5 {[%emt 0:16:43]} 17. Qe2 {[%emt 0:02:53]} Nb6 {[%emt 0:08:35]} 18. Ne4 {[%emt 0:05:53]} Bh6 {[%emt 0:01:48]} 19. Ne5 {[%emt 0:01:23]} g6 {[%emt 0:10:31]} 20. Nc3 {[%emt 0:08:39]} Nd7 {[%emt 0:03:21]} 21. Nc4 {[%emt 0:00:59]} Nb6 {[%emt 0:01:50]} 22. Rfe1 {[%emt 0:02:41]} Nxc4 {[%emt 0:01:35]} 23. Qxc4 {[%emt 0:00:08]} Bd7 {[%emt 0:00:03]} 24. Qb3 {[%emt 0:01:54]} Qe7 {[%emt 0:03:22]} 25. Ne4 {[%emt 0:04:49]} Rfc8 {[%emt 0:00:25][%cal Bf8c8,Bc8c6,Bc6b6,Bb6b5][%mdl 32]} 26. Nc5 {[%emt 0:02:13]} Bc6 {[%emt 0:00:29]} 27. Bxc6 {[%emt 0:00:31]} Rxc6 {[%emt 0:00:05]} 28. a4 {[%emt 0:00:08]} Rbc8 {[%emt 0:03:00]} (28... b6 $5 {[%cal Rb6c5]} 29. Ne4 (29. Nxa6 Rxc1 30. Rxc1 Rd8 $15) 29... Rbc8 30. Rxc6 Rxc6 $15) 29. a5 {[%emt 0:01:32]} b6 {[%emt 0:05:08]} 30. axb6 {[%emt 0:00:11]} Rxb6 {[%emt 0:00:01]} 31. Qc4 {[%emt 0:00:17]} Rcc6 {[%emt 0:06:51]} 32. Rb1 {[%emt 0:00:40]} Qa7 {[%emt 0:01:39]} 33. Rb3 {[%emt 0:04:10]} Rb5 {[%emt 0:00:19]} 34. Ra1 {[%emt 0:00:43] Qxb5 is the strong threat.} Qb6 {[%emt 0:02:45]} 35. Kf2 {[%emt 0:04:34]} Bf8 {[%emt 0:00:49]} 36. Ra4 {[%emt 0:01:12]} e5 {[%emt 0:02:35]} (36... Qd8 {feels hotter.} 37. g3 e5 38. Ra2 exd4 39. exd4 Rf6+) 37. Qd3 $2 {[%emt 0:03:51]} ({White should play} 37. Kg1 $15) 37... Bxc5 $2 {[%emt 0:03:53]} (37... Qd8 $1 $19 {aiming for ...exd4.} 38. Kg1 exd4) 38. dxc5 $11 {[%emt 0:00:06]} Qb8 {[%emt 0:00:11]} 39. Qe4 {[%emt 0:01:33]} Rf6+ {[%emt 0:05:43]} 40. Ke2 {[%emt 0:00:02] [#]} (40. Kg3 $11 {remains equal.}) 40... Rxc5 $3 $17 {[%emt 0:00:43][%mdl 512]} 41. bxc5 {[%emt 0:01:42]} Qxb3 {[%emt 0:00:01][%mdl 4096] Endgame KQR-KQR} 42. Rc4 {[%emt 0:00:14]} Qb2+ $1 {[%emt 0:01:26]} 43. Qc2 {[%emt 0:00:02] [#]} Qb5 {[%emt 0:00:32] Black is more active.} ({Much weaker is} 43... Qa1 $6 44. Qc1 Qa2+ 45. Qc2 $11) 44. Qd3 {[%emt 0:00:50] [#]} (44. g4 $17 {was called for.}) 44... Kg7 {[%emt 0:00:31]} ({Better is} 44... a5 $1 $19 {[%cal Ra5a4] White must now prevent ...a4.} 45. Qc2 a4 46. Qxa4 Qb1) 45. e4 {[%emt 0:01:01]} (45. Qe4 $1 $15) 45... a5 {[%emt 0:00:25]} 46. Rc2 $2 {[%emt 0:00:42][%mdl 8192]} (46. Ke3 $17 {is tougher.}) 46... Qb1 $19 {[%emt 0:01:13] Hoping for ...a4.} 47. Ke3 {[%emt 0:00:39]} (47. Qc3 $19 a4 48. Qb2 Qf1+ 49. Ke3 Qf4+ 50. Kd3) 47... Qg1+ {[%emt 0:00:20]} 48. Kd2 {[%emt 0:00:22]} Rf2+ {[%emt 0:00:13]} 49. Kc3 {[%emt 0:00:17]} Qa1+ {[%emt 0:00:40] Weighted Error Value: White=0.56/Black=0.18 (very precise)} 0-1

[Event "Saint Louis Norm Congress-IM 2022"]
[Site "Saint Louis"]
[Date "2022.05.21"]
[Round "4.5"]
[White "Lee, Alice"]
[Black "Yu, Jennifer"]
[Result "1/2-1/2"]
[ECO "D37"]
[WhiteElo "2344"]
[BlackElo "2257"]
[Annotator "TA"]
[PlyCount "96"]
[EventDate "2022.05.20"]
[EventType "tourn"]
[EventCountry "USA"]
[SourceTitle "playchess.com"]
[Source "ChessBase"]
[SourceQuality "1"]
[TimeControl "5400+30"]

{[%evp 9,96,16,17,17,17,19,19,20,14,18,17,16,16,18,17,9,34,9,45,0,23,0,0,0,0,0,14,-6,0,10,13,0,0,-10,0,0,0,-46,-22,-22,-20,-53,-12,-10,0,0,0,-33,-41,-65,-65,-65,-65,-65,-65,-65,-12,-12,-12,-12,-12,-19,-12,-19,0,-65,-2,-7,0,0,0,-58,0,-65,-65,-65,-65,-65,-63,-65,0,-65,-65,-65,0,-65,0,-65,0]} 1. d4 {[%emt 0:00:01]} d5 {[%emt 0:15:11]} 2. c4 {[%emt 0:00:08]} e6 {[%emt 0:00:22]} 3. Nf3 {[%emt 0:00:16]} Nf6 {[%emt 0:00:21]} 4. Nc3 {[%emt 0:00:15]} a6 {[%emt 0:00:13]} 5. c5 {[%emt 0:00:34]} b6 {[%emt 0:04:10]} 6. cxb6 {[%emt 0:00:29] D37: Queen's Gambit Declined: 5 Bf4.} cxb6 {[%emt 0:00:21]} ({But not} 6... Nbd7 7. bxc7 Qxc7 8. Bd2 $14) 7. Bf4 {[%emt 0:00:47]} Bd6 {[%emt 0:01:22]} 8. e3 {[%emt 0:02:58] The position is equal.} Bxf4 {[%emt 0:11:02]} 9. exf4 {[%emt 0:00:09]} Nc6 {[%emt 0:00:02]} 10. Bd3 {[%emt 0:03:38]} Qd6 {[%emt 0:02:18]} 11. g3 {[%emt 0:00:50]} O-O {[%emt 0:03:04]} 12. O-O {[%emt 0:00:28] [#]} Bb7 $146 {[%emt 0:01:54]} ({Predecessor:} 12... Bd7 13. Rc1 Rfc8 14. Re1 b5 15. Bb1 Ne7 16. Ne5 b4 17. Ne2 Bb5 18. Rxc8+ Rxc8 {½-½ (30) Visakh,N (2518)-Rakhmanov,A (2645) Moscow 2020}) 13. Rc1 {[%emt 0:02:23]} (13. Na4 $5 {[%cal Ra4b6]}) 13... Rac8 {[%emt 0:02:44]} (13... Rfc8 {is more complex.} 14. Ne5 g6 15. Ne2 Nb4) 14. Re1 {[%emt 0:03:27]} (14. Na4 $5 {[%cal Ra4b6]}) 14... Rc7 {[%emt 0:11:45]} 15. Bb1 {[%emt 0:12:28]} Ne7 {[%emt 0:02:41]} 16. Ne5 {[%emt 0:02:59]} Rfc8 {[%emt 0:01:44]} 17. a3 {[%emt 0:05:57]} b5 {[%emt 0:04:08]} 18. Qb3 {[%emt 0:03:11]} Nc6 {[%emt 0:11:49]} 19. Nxc6 {[%emt 0:03:47]} Rxc6 {[%emt 0:01:27]} 20. Rcd1 {[%emt 0:01:39]} g6 {[%emt 0:03:48]} 21. Bd3 {[%emt 0:07:29]} R6c7 {[%emt 0:01:19]} 22. h4 {[%emt 0:02:46]} h5 {[%emt 0:05:07]} 23. Re2 {[%emt 0:08:24]} (23. Qc2 $11) 23... Kg7 {[%emt 0:01:20][%cal Oc7c4]} (23... Rc4 $5) 24. Ree1 {[%emt 0:03:42]} Nd7 {[%emt 0:02:28]} 25. Kg2 {[%emt 0:02:52]} Rc4 {[%emt 0:01:42]} 26. Ne2 {[%emt 0:04:12]} Nb8 {[%emt 0:03:15]} 27. Kg1 {[%emt 0:01:57]} R4c7 {[%emt 0:00:04]} 28. Qa2 {[%emt 0:06:18]} b4 {[%emt 0:03:23]} 29. a4 {[%emt 0:01:45]} a5 $1 {[%emt 0:01:00]} 30. b3 {[%emt 0:01:31]} Ba6 {[%emt 0:00:18]} 31. Qd2 {[%emt 0:00:47]} Bxd3 {[%emt 0:01:29]} 32. Qxd3 {[%emt 0:00:03]} Rc2 {[%emt 0:00:05]} (32... Nd7 $15) 33. Rc1 $11 {[%emt 0:02:03]} Rxc1 {[%emt 0:02:07]} 34. Rxc1 {[%emt 0:00:05]} Rxc1+ {[%emt 0:00:11]} 35. Nxc1 {[%emt 0:00:05][%mdl 4096] Endgame KQN-KQN} Qc7 {[%emt 0:00:42]} 36. Ne2 {[%emt 0:00:56]} Nd7 {[%emt 0:00:29]} 37. Kg2 {[%emt 0:01:19]} (37. f3 $1 $11) 37... Kf8 {[%emt 0:00:23]} ({Black should try} 37... Nf6 $15) 38. f3 {[%emt 0:01:15]} Ke7 {[%emt 0:00:35]} 39. Kf2 {[%emt 0:00:17]} Nf6 {[%emt 0:00:56]} 40. Ke3 {[%emt 0:00:31]} ({Better is} 40. f5 $11 gxf5 41. Qd2) 40... Ne8 {[%emt 0:00:11]} (40... Qc6 $1 $15) 41. Kd2 {[%emt 0:01:32]} (41. f5 $1 $11) 41... Nd6 $15 {[%emt 0:00:05]} 42. Ke3 {[%emt 0:02:49]} Nf5+ {[%emt 0:00:37]} 43. Kf2 {[%emt 0:00:03]} Qb6 {[%emt 0:00:59]} 44. Kg2 {[%emt 0:00:54]} Qc7 {[%emt 0:00:43]} ({Black should play} 44... Qd8 $15) 45. Kh3 {[%emt 0:02:04]} (45. Kf2 $11) 45... Nd6 {[%emt 0:00:05]} 46. Kg2 {[%emt 0:00:34]} Nf5 {[%emt 0:00:30]} 47. Kh3 {[%emt 0:00:09]} Nd6 {[%emt 0:00:26]} 48. Kg2 {[%emt 0:00:10]} Nf5 {[%emt 0:00:07] Weighted Error Value: White=0.17 (very precise) /Black=0.16 (very precise)} (48... Kf8 $15) 1/2-1/2